[Event "Mitropa Cup Women 2019"]
[Site "Radenci"]
[Date "2019.05.30"]
[Round "4.2"]
[White "Janzelj, Lara"]
[Black "De Seroux, Camille"]
[Result "1-0"]
[ECO "A57"]
[WhiteElo "2203"]
[BlackElo "2143"]
[Annotator "ChessBase"]
[PlyCount "51"]
[EventDate "2019.05.27"]
[EventType "team-tourn"]
[EventCountry "SLO"]
[SourceTitle "playchess.com"]
[Source "ChessBase"]
[SourceQuality "1"]
[WhiteTeam "Slovenia"]
[BlackTeam "Switzerland"]
[WhiteTeamCountry "SLO"]
[BlackTeamCountry "SUI"]
[TimeControl "40/5400+30:1800+30"]

1. d4 {[%emt 0:00:00]} Nf6 {[%emt 0:00:00]} 2. c4 {[%emt 0:00:00]} c5 {[%emt 0:00:00]} 3. d5 {[%emt 0:00:00]} b5 {[%emt 0:00:01]} 4. cxb5 {[%emt 0:00:00]} a6 {[%emt 0:00:14]} 5. e3 {[%emt 0:00:00]} g6 {[%emt 0:00:24]} 6. Nc3 {[%emt 0:00:05]} Bg7 {[%emt 0:00:19]} 7. Nf3 {[%emt 0:00:56]} O-O {[%emt 0:01:58]} 8. a4 {[%emt 0:03:00]} Bb7 {[%emt 0:00:45]} 9. Ra3 {[%emt 0:01:44]} e6 {[%emt 0:03:41]} 10. dxe6 {[%emt 0:12:35]} fxe6 {[%emt 0:01:10]} 11. Qd6 {[%emt 0:03:00]} axb5 {[%emt 0:08:36]} 12. axb5 {[%emt 0:08:50]} Rxa3 {[%emt 0:07:35]} 13. bxa3 {[%emt 0:00:06]} Ng4 {[%emt 0:08:13]} 14. Nd1 {[%emt 0:07:29]} Rxf3 {[%emt 0:16:49]} 15. gxf3 {[%emt 0:00:16]} Bxf3 {[%emt 0:02:37]} 16. Rg1 {[%emt 0:08:05]} Be5 {[%emt 0:04:19]} 17. Qxc5 {[%emt 0:00:24]} Bxd1 {[%emt 0:17:08]} 18. Rxg4 {[%emt 0:13:57]} d6 {[%emt 0:09:27]} 19. Rd4 {[%emt 0:01:19]} Nd7 {[%emt 0:14:39]} 20. Qc4 {[%emt 0:01:48]} Bxd4 {[%emt 0:00:40]} 21. Qxe6+ {[%emt 0:04:18]} Kh8 {[%emt 0:00:25]} 22. exd4 {[%emt 0:00:17]} Nf8 {[%emt 0:00:46]} 23. Qf7 {[%emt 0:01:06]} Bg4 {[%emt 0:00:21]} 24. Bc4 {[%emt 0:04:01]} Nd7 {[%emt 0:00:24]} 25. Bd2 {[%emt 0:01:19]} Nb6 {[%emt 0:01:25]} 26. Bg5 {[%emt 0:00:35]} 1-0

[Event "Mitropa Cup Women 2019"]
[Site "Radenci"]
[Date "2019.05.30"]
[Round "4.3"]
[White "Hund, Sarah"]
[Black "Hercog, Nusa"]
[Result "1-0"]
[ECO "B30"]
[WhiteElo "2016"]
[BlackElo "2062"]
[Annotator "NA"]
[PlyCount "85"]
[EventDate "2019.05.27"]
[EventType "team-tourn"]
[EventCountry "SLO"]
[SourceTitle "playchess.com"]
[Source "ChessBase"]
[SourceQuality "1"]
[WhiteTeam "Switzerland"]
[BlackTeam "Slovenia"]
[WhiteTeamCountry "SUI"]
[BlackTeamCountry "SLO"]
[TimeControl "40/5400+30:1800+30"]

1. e4 {[%emt 0:00:00]} c5 {[%emt 0:00:00]} 2. Nc3 {[%emt 0:00:00]} Nc6 {[%emt 0:00:00]} 3. Bb5 {[%emt 0:00:00]} Nd4 {[%emt 0:00:03]} 4. Bc4 {[%emt 0:00:12]} e6 {[%emt 0:00:40]} 5. Nf3 {[%emt 0:00:27]} Nf6 {[%emt 0:04:42]} 6. O-O {[%emt 0:01:04]} a6 {[%emt 0:01:29]} 7. d3 {[%emt 0:01:29]} b5 {[%emt 0:00:25]} 8. Bb3 {[%emt 0:00:33]} Nxb3 {[%emt 0:00:59]} 9. axb3 {[%emt 0:00:11]} Bb7 {[%emt 0:01:55]} 10. e5 {[%emt 0:01:39]} Nd5 {[%emt 0:03:24]} 11. Nxd5 {[%emt 0:02:40]} Bxd5 {[%emt 0:00:24]} 12. Ng5 {[%emt 0:03:04]} h6 {[%emt 0:06:22]} 13. c4 {[%emt 0:01:38]} Bb7 {[%emt 0:08:54]} 14. Ne4 {[%emt 0:03:02]} Qc7 {[%emt 0:13:17]} 15. Qf3 {[%emt 0:06:58]} Bxe4 {[%emt 0:09:59]} 16. Qxe4 {[%emt 0:05:12]} Ra7 {[%emt 0:00:27]} 17. Be3 {[%emt 0:04:05]} b4 {[%emt 0:07:23]} 18. Rfe1 {[%emt 0:10:54]} Be7 {[%emt 0:04:49]} 19. Qg4 {[%emt 0:05:44]} g6 {[%emt 0:06:02]} 20. Bd2 {[%emt 0:06:37]} Bf8 {[%emt 0:04:19]} 21. Qe4 {[%emt 0:05:08]} Bg7 {[%emt 0:03:16]} 22. d4 {[%emt 0:02:04]} O-O {[%emt 0:06:49]} 23. dxc5 {[%emt 0:02:45]} a5 {[%emt 0:00:28]} 24. Be3 {[%emt 0:11:38]} Raa8 {[%emt 0:00:34]} 25. Bd4 {[%emt 0:00:43]} Kh7 {[%emt 0:02:17]} 26. Re3 {[%emt 0:01:06]} Qd8 {[%emt 0:06:01]} 27. Rd3 {[%emt 0:01:43]} Qe7 {[%emt 0:02:25]} 28. Be3 {[%emt 0:01:47]} f5 {[%emt 0:01:55]} 29. exf6 {[%emt 0:01:42]} Bxf6 {[%emt 0:00:11]} 30. Rad1 {[%emt 0:00:18]} Rad8 {[%emt 0:00:36]} 31. Qb7 {[%emt 0:02:01]} Rf7 {[%emt 0:00:29]} 32. c6 {[%emt 0:01:31]} d6 {[%emt 0:00:31]} 33. Qxe7 {[%emt 0:01:51]} Bxe7 {[%emt 0:00:10]} 34. Bb6 {[%emt 0:00:41]} Rc8 {[%emt 0:00:45]} 35. c7 {[%emt 0:00:23]} Rf5 {[%emt 0:01:36]} 36. Re3 {[%emt 0:00:37]} e5 {[%emt 0:01:37]} 37. c5 {[%emt 0:00:58]} Rf6 {[%emt 0:01:35]} 38. Bxa5 {[%emt 0:01:41]} dxc5 {[%emt 0:00:27]} 39. Rxe5 {[%emt 0:00:52]} Bd6 {[%emt 0:01:41]} 40. Red5 {[%emt 0:00:00]} Be7 {[%emt 0:00:00]} 41. Rd8 {[%emt 0:03:41]} Rf8 {[%emt 0:07:44]} 42. Rxf8 {[%emt 0:02:05]} Rxf8 {[%emt 0:00:28]} 43. Rd8 {[%emt 0:00:13]} 1-0

[Event "Mitropa Cup Women 2019"]
[Site "Radenci"]
[Date "2019.05.30"]
[Round "4.4"]
[White "Kuhar, Larisa"]
[Black "Pellicoro, Nathalie"]
[Result "0-1"]
[ECO "B49"]
[WhiteElo "1930"]
[BlackElo "1893"]
[Annotator "NA"]
[PlyCount "68"]
[EventDate "2019.05.27"]
[EventType "team-tourn"]
[EventCountry "SLO"]
[SourceTitle "playchess.com"]
[Source "ChessBase"]
[SourceQuality "1"]
[WhiteTeam "Slovenia"]
[BlackTeam "Switzerland"]
[WhiteTeamCountry "SLO"]
[BlackTeamCountry "SUI"]
[TimeControl "40/5400+30:1800+30"]

1. e4 {[%emt 0:00:00]} c5 {[%emt 0:00:00]} 2. Nf3 {[%emt 0:00:00]} e6 {[%emt 0:00:00]} 3. d4 {[%emt 0:00:00]} cxd4 {[%emt 0:00:04]} 4. Nxd4 {[%emt 0:00:00]} Nc6 {[%emt 0:00:16]} 5. Nc3 {[%emt 0:01:49]} Qc7 {[%emt 0:00:16]} 6. Be2 {[%emt 0:01:24]} Nf6 {[%emt 0:00:37]} 7. O-O {[%emt 0:01:09]} a6 {[%emt 0:01:12]} 8. Be3 {[%emt 0:04:31]} b5 {[%emt 0:01:12]} 9. a3 {[%emt 0:17:05]} Bb7 {[%emt 0:01:12]} 10. f4 {[%emt 0:02:09]} Bc5 {[%emt 0:02:03]} 11. Bf3 {[%emt 0:14:28]} e5 {[%emt 0:09:29]} 12. fxe5 {[%emt 0:08:18]} Nxe5 {[%emt 0:03:33]} 13. Kh1 {[%emt 0:03:09]} Nc4 {[%emt 0:22:35]} 14. Bc1 {[%emt 0:02:25]} O-O {[%emt 0:05:55]} 15. Nf5 {[%emt 0:06:00]} Qe5 {[%emt 0:05:51]} 16. Qd3 {[%emt 0:05:50]} Rad8 {[%emt 0:08:17]} 17. b3 {[%emt 0:05:09]} d5 {[%emt 0:05:07]} 18. exd5 {[%emt 0:12:30]} Nxd5 {[%emt 0:01:56]} 19. Bxd5 {[%emt 0:07:06]} Bxd5 {[%emt 0:01:50]} 20. Bf4 {[%emt 0:00:35]} Qe6 {[%emt 0:08:12]} 21. Qh3 {[%emt 0:01:34]} Nd6 {[%emt 0:03:49]} 22. Bxd6 {[%emt 0:03:12]} Bxd6 {[%emt 0:00:21]} 23. Qg4 {[%emt 0:02:19]} g6 {[%emt 0:05:15]} 24. Rae1 {[%emt 0:00:29]} Be5 {[%emt 0:00:40]} 25. Qg5 {[%emt 0:00:43]} f6 {[%emt 0:01:29]} 26. Nh6+ {[%emt 0:00:29]} Kg7 {[%emt 0:01:46]} 27. Qe3 {[%emt 0:00:23]} Bb7 {[%emt 0:02:27]} 28. h3 {[%emt 0:00:38]} Qc6 {[%emt 0:01:24]} 29. Ne4 {[%emt 0:00:31]} Qxe4 {[%emt 0:00:56]} 30. Qxe4 {[%emt 0:00:33]} Bxe4 {[%emt 0:00:02]} 31. Ng4 {[%emt 0:00:29]} Bxc2 {[%emt 0:00:49]} 32. Nxe5 {[%emt 0:00:30]} fxe5 {[%emt 0:00:15]} 33. Rxf8 {[%emt 0:00:28]} Rxf8 {[%emt 0:00:10]} 34. Rxe5 {[%emt 0:00:12]} Bxb3 {[%emt 0:00:13]} 0-1

[Event "Mitropa Cup Women 2019"]
[Site "Radenci"]
[Date "2019.05.30"]
[Round "4.5"]
[White "Gueci, Tea"]
[Black "Navrotescu, Andreea-Cristiana"]
[Result "0-1"]
[ECO "C11"]
[WhiteElo "2251"]
[BlackElo "2233"]
[Annotator "ChessBase"]
[PlyCount "88"]
[EventDate "2019.05.27"]
[EventType "team-tourn"]
[EventCountry "SLO"]
[SourceTitle "playchess.com"]
[Source "ChessBase"]
[SourceQuality "1"]
[WhiteTeam "Italy"]
[BlackTeam "France"]
[WhiteTeamCountry "ITA"]
[BlackTeamCountry "FRA"]
[TimeControl "40/5400+30:1800+30"]

1. e4 {[%emt 0:00:00]} e6 {[%emt 0:00:00]} 2. d4 {[%emt 0:00:00]} d5 {[%emt 0:00:00]} 3. Nc3 {[%emt 0:00:00]} Nf6 {[%emt 0:00:06]} 4. e5 {[%emt 0:00:00]} Nfd7 {[%emt 0:00:07]} 5. f4 {[%emt 0:00:00]} c5 {[%emt 0:00:14]} 6. Nf3 {[%emt 0:00:00]} Nc6 {[%emt 0:00:16]} 7. Be3 {[%emt 0:00:11]} cxd4 {[%emt 0:00:16]} 8. Nxd4 {[%emt 0:00:24]} Qb6 {[%emt 0:00:16]} 9. Qd2 {[%emt 0:01:10]} Qxb2 {[%emt 0:00:19]} 10. Rb1 {[%emt 0:00:12]} Qa3 {[%emt 0:00:01]} 11. Bb5 {[%emt 0:00:42]} Nxd4 {[%emt 0:00:19]} 12. Bxd4 {[%emt 0:00:10]} a6 {[%emt 0:00:14]} 13. Bxd7+ {[%emt 0:00:35]} Bxd7 {[%emt 0:00:09]} 14. Rb3 {[%emt 0:00:40]} Qe7 {[%emt 0:00:26]} 15. Rxb7 {[%emt 0:00:30]} Rc8 {[%emt 0:01:13]} 16. O-O {[%emt 0:05:10]} Qa3 {[%emt 0:03:17]} 17. Rfb1 {[%emt 0:19:19]} Bc5 {[%emt 0:03:54]} 18. Ne2 {[%emt 0:09:12]} Qxa2 {[%emt 0:11:21]} 19. Bxc5 {[%emt 0:17:35]} Rxc5 {[%emt 0:00:30]} 20. Nd4 {[%emt 0:00:43]} Bc8 {[%emt 0:06:05]} 21. R7b2 {[%emt 0:08:19]} Qa5 {[%emt 0:09:34]} 22. Qf2 {[%emt 0:04:07]} Qc7 {[%emt 0:00:36]} 23. f5 {[%emt 0:03:45]} Rc4 {[%emt 0:09:14]} 24. fxe6 {[%emt 0:12:30]} O-O {[%emt 0:02:25]} 25. Rf1 {[%emt 0:01:55]} Qe7 {[%emt 0:19:43]} 26. exf7+ {[%emt 0:11:01]} Qxf7 {[%emt 0:02:13]} 27. Qxf7+ {[%emt 0:00:11]} Rxf7 {[%emt 0:00:01]} 28. Rxf7 {[%emt 0:00:48]} Kxf7 {[%emt 0:00:02]} 29. Nf3 {[%emt 0:00:35]} a5 {[%emt 0:03:26]} 30. Rb5 {[%emt 0:01:00]} a4 {[%emt 0:00:01]} 31. Ra5 {[%emt 0:02:12]} h6 {[%emt 0:11:43]} 32. c3 {[%emt 0:01:49]} Ke6 {[%emt 0:04:32]} 33. Kf2 {[%emt 0:00:28]} Bd7 {[%emt 0:02:35]} 34. Ra6+ {[%emt 0:00:31]} Ke7 {[%emt 0:00:17]} 35. Ra5 {[%emt 0:01:07]} Rxc3 {[%emt 0:00:23]} 36. Rxd5 {[%emt 0:00:08]} a3 {[%emt 0:01:11]} 37. Ra5 {[%emt 0:00:27]} Rc2+ {[%emt 0:00:19]} 38. Kg3 {[%emt 0:00:42]} a2 {[%emt 0:00:26]} 39. Nd4 {[%emt 0:00:21]} Rd2 {[%emt 0:00:45]} 40. Nf3 {[%emt 0:00:00]} Rb2 {[%emt 0:00:00]} 41. Nd4 {[%emt 0:06:25]} Rb4 {[%emt 0:04:08]} 42. e6 {[%emt 0:11:46]} Ra4 {[%emt 0:02:13]} 43. Nf5+ {[%emt 0:05:06]} Kxe6 {[%emt 0:00:22]} 44. Nd4+ {[%emt 0:00:35] Ke5} Kf7 {[%emt 0:00:32]} 0-1

[Event "Mitropa Cup Women 2019"]
[Site "Radenci"]
[Date "2019.05.30"]
[Round "4.6"]
[White "Afraoui, Anaelle"]
[Black "Santeramo, Alessia"]
[Result "1/2-1/2"]
[ECO "C91"]
[WhiteElo "2068"]
[BlackElo "2074"]
[Annotator "NA"]
[PlyCount "101"]
[EventDate "2019.05.27"]
[EventType "team-tourn"]
[EventCountry "SLO"]
[SourceTitle "playchess.com"]
[Source "ChessBase"]
[SourceQuality "1"]
[WhiteTeam "France"]
[BlackTeam "Italy"]
[WhiteTeamCountry "FRA"]
[BlackTeamCountry "ITA"]
[TimeControl "40/5400+30:1800+30"]

1. e4 {[%emt 0:00:00]} e5 {[%emt 0:00:00]} 2. Nf3 {[%emt 0:00:00]} Nc6 {[%emt 0:00:00]} 3. Bb5 {[%emt 0:00:00]} a6 {[%emt 0:00:11]} 4. Ba4 {[%emt 0:00:00]} Nf6 {[%emt 0:00:06]} 5. O-O {[%emt 0:00:00]} Be7 {[%emt 0:00:15]} 6. Re1 {[%emt 0:00:00]} b5 {[%emt 0:00:13]} 7. Bb3 {[%emt 0:00:00]} d6 {[%emt 0:00:13]} 8. c3 {[%emt 0:00:04]} O-O {[%emt 0:00:13]} 9. d4 {[%emt 0:00:03]} Bg4 {[%emt 0:00:11]} 10. d5 {[%emt 0:00:08]} Na5 {[%emt 0:00:15]} 11. Bc2 {[%emt 0:00:04]} c6 {[%emt 0:00:30]} 12. h3 {[%emt 0:00:05]} Bc8 {[%emt 0:00:13]} 13. dxc6 {[%emt 0:00:07]} Qc7 {[%emt 0:00:07]} 14. Nbd2 {[%emt 0:00:09]} Qxc6 {[%emt 0:01:08]} 15. Nf1 {[%emt 0:00:13]} Be6 {[%emt 0:01:58]} 16. Ng5 {[%emt 0:00:10] C91: Closed Ruy Lopez: 7...d6 8 c3 0-0 9 d4} (16. Ng3 Rfe8 17. Ng5 Bd7 18. Nf3 Rac8 19. a4 b4 20. cxb4 Qxc2 21. bxa5 Be6 22. Bg5 Qxb2 23. Bxf6 Bxf6 24. Qxd6 {½-½ (47) Liu,Q (2527)-Jakovenko,D (2749) China 2018}) 16... Bd7 {[%emt 0:03:55]} 17. Ng3 {[%emt 0:01:02]} g6 {[%emt 0:01:47]} 18. a4 {[%emt 0:03:34]} Nc4 {[%emt 0:17:00]} 19. f4 $17 {[%emt 0:04:32]} ({Predecessor:} 19. b3 $11 Na5 20. Qd3 (20. axb5 axb5 21. Bd2 Ra6 22. Nf1 Rfa8 23. Ne3 Qc8 24. b4 {1-0 (45) Kiolbasa,O (2319)-Santeramo,A (2137) Bhubaneswar 2016})) 19... Bd8 {[%emt 0:18:13]} 20. axb5 {[%emt 0:11:09]} Bb6+ {[%emt 0:03:25]} 21. Kh2 {[%emt 0:02:17]} axb5 {[%emt 0:00:39]} 22. Rxa8 {[%emt 0:00:58]} Rxa8 {[%emt 0:01:22]} 23. Bb3 {[%emt 0:16:38]} Bf2 {[%emt 0:23:34]} 24. Rf1 {[%emt 0:07:47]} Bxg3+ {[%emt 0:00:57]} 25. Kxg3 {[%emt 0:00:06]} Nxe4+ {[%emt 0:02:41]} 26. Nxe4 {[%emt 0:01:33]} Qxe4 {[%emt 0:00:06]} 27. Bc2 {[%emt 0:09:22]} Qc6 {[%emt 0:01:13]} 28. fxe5 {[%emt 0:01:35]} dxe5 {[%emt 0:01:44]} 29. Qe2 {[%emt 0:01:08]} Re8 {[%emt 0:04:05]} 30. Be4 {[%emt 0:01:53]} Qc7 {[%emt 0:05:50]} 31. Kh2 {[%emt 0:07:16]} f5 {[%emt 0:02:19]} 32. Bc2 {[%emt 0:00:48]} Bc6 {[%emt 0:03:21]} 33. b3 {[%emt 0:02:09]} Nb6 {[%emt 0:02:52]} 34. c4 {[%emt 0:06:21]} bxc4 {[%emt 0:00:13]} 35. bxc4 {[%emt 0:00:07]} Ba4 {[%emt 0:02:01]} 36. c5 {[%emt 0:14:20]} Bxc2 {[%emt 0:02:40]} 37. cxb6 {[%emt 0:04:45]} Qc6 {[%emt 0:00:27]} 38. Be3 {[%emt 0:00:41]} f4 {[%emt 0:00:57]} 39. Bg1 {[%emt 0:01:00]} Bf5 {[%emt 0:00:57]} 40. Rc1 {[%emt 0:00:00]} Qxc1 {[%emt 0:00:00]} 41. Qb5 {[%emt 0:02:29]} Rd8 {[%emt 0:21:08]} 42. b7 {[%emt 0:04:58]} f3 {[%emt 0:08:03]} 43. Qxe5 {[%emt 0:11:08]} Qb1 {[%emt 0:01:06]} 44. Bd4 {[%emt 0:00:27]} Kf7 {[%emt 0:02:04]} 45. Qc7+ {[%emt 0:02:48]} Ke6 {[%emt 0:01:40]} 46. Qxd8 {[%emt 0:04:32]} Qxb7 {[%emt 0:00:08]} 47. Qf6+ {[%emt 0:02:33]} Kd5 {[%emt 0:00:40]} 48. Qe5+ {[%emt 0:00:08]} Kc6 {[%emt 0:00:27]} 49. Qf6+ {[%emt 0:00:39]} Kd5 {[%emt 0:00:24]} 50. Qe5+ {[%emt 0:00:09]} Kc6 {[%emt 0:00:27]} 51. Qf6+ {[%emt 0:00:06]} 1/2-1/2

[Event "Mitropa Cup Women 2019"]
[Site "Radenci"]
[Date "2019.05.30"]
[Round "4.7"]
[White "Palma, Maria"]
[Black "Choisy, Mathilde"]
[Result "1/2-1/2"]
[ECO "E67"]
[WhiteElo "2018"]
[BlackElo "2113"]
[Annotator "ChessBase"]
[PlyCount "76"]
[EventDate "2019.05.27"]
[EventType "team-tourn"]
[EventCountry "SLO"]
[SourceTitle "playchess.com"]
[Source "ChessBase"]
[SourceQuality "1"]
[WhiteTeam "Italy"]
[BlackTeam "France"]
[WhiteTeamCountry "ITA"]
[BlackTeamCountry "FRA"]
[TimeControl "40/5400+30:1800+30"]

1. c4 {[%emt 0:00:00]} Nf6 {[%emt 0:00:00]} 2. g3 {[%emt 0:00:00]} g6 {[%emt 0:00:01]} 3. Bg2 {[%emt 0:00:04]} Bg7 {[%emt 0:00:05]} 4. Nc3 {[%emt 0:00:04]} O-O {[%emt 0:00:07]} 5. Nf3 {[%emt 0:00:54]} d6 {[%emt 0:00:06]} 6. d4 {[%emt 0:00:38]} Nbd7 {[%emt 0:01:06]} 7. O-O {[%emt 0:00:30]} e5 {[%emt 0:00:11]} 8. h3 {[%emt 0:00:49]} Re8 {[%emt 0:01:45]} 9. Be3 {[%emt 0:00:56]} Qe7 {[%emt 0:17:18]} 10. Rc1 {[%emt 0:07:59]} c6 {[%emt 0:10:22]} 11. dxe5 {[%emt 0:13:35]} Nxe5 {[%emt 0:07:37]} 12. Nxe5 {[%emt 0:03:58]} dxe5 {[%emt 0:01:04]} 13. Qa4 {[%emt 0:06:39]} Be6 {[%emt 0:07:24]} 14. Rfd1 {[%emt 0:03:58]} Nd7 {[%emt 0:06:54]} 15. b3 {[%emt 0:15:35]} f5 {[%emt 0:02:27]} 16. Nb1 {[%emt 0:03:25]} Rf8 {[%emt 0:06:26]} 17. Qa3 {[%emt 0:03:28]} Qxa3 {[%emt 0:02:57]} 18. Nxa3 {[%emt 0:00:04]} e4 {[%emt 0:04:01]} 19. Nc2 {[%emt 0:03:08]} Ne5 {[%emt 0:03:40]} 20. Rd6 {[%emt 0:01:24]} Rfe8 {[%emt 0:01:11]} 21. Rdd1 {[%emt 0:04:28]} h6 {[%emt 0:07:35]} 22. Bc5 {[%emt 0:04:27]} b6 {[%emt 0:01:22]} 23. Bd4 {[%emt 0:03:40]} Rad8 {[%emt 0:04:57]} 24. Ba1 {[%emt 0:00:47]} c5 {[%emt 0:02:00]} 25. Kf1 {[%emt 0:04:00]} Bf7 {[%emt 0:04:02]} 26. Ne3 {[%emt 0:04:23]} Nc6 {[%emt 0:01:15]} 27. Bxg7 {[%emt 0:01:13]} Kxg7 {[%emt 0:00:00]} 28. Rxd8 {[%emt 0:03:38]} Rxd8 {[%emt 0:00:00]} 29. Rd1 {[%emt 0:00:35]} Rxd1+ {[%emt 0:01:16]} 30. Nxd1 {[%emt 0:00:02]} Kf6 {[%emt 0:01:55]} 31. Ke1 {[%emt 0:03:57]} Ke5 {[%emt 0:00:20]} 32. Kd2 {[%emt 0:00:38]} g5 {[%emt 0:00:42]} 33. Nc3 {[%emt 0:00:28]} Nd4 {[%emt 0:01:46]} 34. e3 {[%emt 0:01:44]} Nc6 {[%emt 0:00:24]} 35. f3 {[%emt 0:02:44]} Bg6 {[%emt 0:02:45]} 36. Nd5 {[%emt 0:01:53]} Bf7 {[%emt 0:00:04]} 37. Nc3 {[%emt 0:00:05]} Bg6 {[%emt 0:00:02]} 38. Nd5 {[%emt 0:00:41]} Bf7 {[%emt 0:00:29]} 1/2-1/2

[Event "Mitropa Cup Women 2019"]
[Site "Radenci"]
[Date "2019.05.30"]
[Round "4.8"]
[White "Djidjeli, Sarah"]
[Black "Raccanello, Marianna"]
[Result "1-0"]
[ECO "B42"]
[WhiteElo "2012"]
[BlackElo "2019"]
[Annotator "NA"]
[PlyCount "49"]
[EventDate "2019.05.27"]
[EventType "team-tourn"]
[EventCountry "SLO"]
[SourceTitle "playchess.com"]
[Source "ChessBase"]
[SourceQuality "1"]
[WhiteTeam "France"]
[BlackTeam "Italy"]
[WhiteTeamCountry "FRA"]
[BlackTeamCountry "ITA"]
[TimeControl "40/5400+30:1800+30"]

1. e4 {[%emt 0:00:00]} c5 {[%emt 0:00:00]} 2. Nf3 {[%emt 0:00:00]} e6 {[%emt 0:00:00]} 3. d4 {[%emt 0:00:00]} cxd4 {[%emt 0:00:00]} 4. Nxd4 {[%emt 0:00:00]} a6 {[%emt 0:00:02]} 5. Bd3 {[%emt 0:00:11]} Bc5 {[%emt 0:00:08]} 6. Nb3 {[%emt 0:00:13]} Ba7 {[%emt 0:00:06]} 7. O-O {[%emt 0:05:22]} Nc6 {[%emt 0:01:19]} 8. N1d2 {[%emt 0:04:23]} d6 {[%emt 0:02:13]} 9. Nf3 {[%emt 0:03:40]} Nge7 {[%emt 0:01:24]} 10. Qe2 {[%emt 0:02:48]} e5 {[%emt 0:00:57]} 11. Be3 {[%emt 0:10:58]} O-O {[%emt 0:03:53]} 12. Rfd1 {[%emt 0:06:37]} Qc7 {[%emt 0:09:36]} 13. c4 {[%emt 0:11:34]} Bxe3 {[%emt 0:03:19]} 14. Qxe3 {[%emt 0:00:37]} b6 {[%emt 0:00:05]} 15. Qd2 {[%emt 0:02:41]} Bb7 {[%emt 0:01:43]} 16. Nc1 {[%emt 0:08:14]} f5 {[%emt 0:04:54]} 17. exf5 {[%emt 0:04:45]} Nxf5 {[%emt 0:00:26]} 18. Bxf5 {[%emt 0:06:12]} Rxf5 {[%emt 0:00:14]} 19. Qxd6 {[%emt 0:00:54]} Rd8 {[%emt 0:01:00]} 20. Qe6+ {[%emt 0:00:09]} Rf7 {[%emt 0:05:43]} 21. Ne2 {[%emt 0:02:46]} h6 {[%emt 0:21:52]} 22. Nc3 {[%emt 0:04:19]} Nd4 {[%emt 0:01:16]} 23. Nxd4 {[%emt 0:00:48]} exd4 {[%emt 0:00:04]} 24. Nd5 {[%emt 0:01:46]} Qxc4 {[%emt 0:00:15]} 25. Ne7+ {[%emt 0:00:04]} 1-0